[Event "Late-Titled-Tuesday-Blitz-May-14-2024"]
[Site "Chess.com"]
[Date "2024.05.14"]
[Round "2"]
[White "Quattroporte300"]
[Black "PattyCastillo"]
[Result "1-0"]
[WhiteElo "2446"]
[BlackElo "2062"]
[TimeControl "180+1"]
[EndTime "14:17:54 PDT"]
[Termination "Quattroporte300 won on time"]

1. e4 {[%clk 0:03:00.9]} 1... c5 {[%clk 0:02:58.3]} 2. Nc3 {[%clk 0:03:01.2]}
2... Nc6 {[%clk 0:02:57.4]} 3. Bb5 {[%clk 0:03:00.7]} 3... Nd4 {[%clk
0:02:57.1]} 4. Bc4 {[%clk 0:03:01.2]} 4... e6 {[%clk 0:02:56.8]} 5. Nge2 {[%clk
0:03:01.3]} 5... g6 {[%clk 0:02:40.6]} 6. O-O {[%clk 0:02:59.2]} 6... Bg7 {[%clk
0:02:40.7]} 7. d3 {[%clk 0:02:48.2]} 7... Ne7 {[%clk 0:02:40.4]} 8. f4 {[%clk
0:02:35.6]} 8... d5 {[%clk 0:02:39]} 9. Bb3 {[%clk 0:02:22.2]} 9... O-O {[%clk
0:02:38.2]} 10. e5 {[%clk 0:02:20.9]} 10... Rb8 {[%clk 0:02:36]} 11. Nxd4 {[%clk
0:02:20.1]} 11... cxd4 {[%clk 0:02:36.2]} 12. Ne2 {[%clk 0:02:20.8]} 12... Nf5
{[%clk 0:02:31.5]} 13. g4 {[%clk 0:02:12.3]} 13... Ne3 {[%clk 0:02:20.5]} 14.
Bxe3 {[%clk 0:02:10.1]} 14... dxe3 {[%clk 0:02:21.4]} 15. d4 {[%clk 0:02:10.6]}
15... Qh4 {[%clk 0:02:16.7]} 16. Ng3 {[%clk 0:02:06.8]} 16... Bd7 {[%clk
0:01:43.9]} 17. Kg2 {[%clk 0:02:02.8]} 17... a5 {[%clk 0:01:41.5]} 18. a4 {[%clk
0:01:27.3]} 18... f6 {[%clk 0:00:56.9]} 19. Qe2 {[%clk 0:01:07.1]} 19... Rf7
{[%clk 0:00:50.1]} 20. h3 {[%clk 0:01:05]} 20... Rbf8 {[%clk 0:00:45.6]} 21.
Qxe3 {[%clk 0:01:01.8]} 21... fxe5 {[%clk 0:00:41.2]} 22. dxe5 {[%clk
0:00:50.4]} 22... Bc6 {[%clk 0:00:34.5]} 23. Qd4 {[%clk 0:00:45.1]} 23... Bh6
{[%clk 0:00:22.9]} 24. Ne2 {[%clk 0:00:44.8]} 24... g5 {[%clk 0:00:13.4]} 25. f5
{[%clk 0:00:27.1]} 25... exf5 {[%clk 0:00:10.6]} 26. e6 {[%clk 0:00:21.2]} 26...
Rf6 {[%clk 0:00:04.6]} 27. Bxd5 {[%clk 0:00:20.6]} 27... Bxd5+ {[%clk
0:00:01.6]} 28. Qxd5 {[%clk 0:00:20.8]} 1-0

[Event "Late-Titled-Tuesday-Blitz-May-14-2024"]
[Site "Chess.com"]
[Date "2024.05.14"]
[Round "2"]
[White "munozmiguelangel1982"]
[Black "Lady_Nika"]
[Result "0-1"]
[WhiteElo "2272"]
[BlackElo "2507"]
[TimeControl "180+1"]
[EndTime "14:17:55 PDT"]
[Termination "Lady_Nika won by resignation"]

1. d4 {[%clk 0:03:00.9]} 1... d5 {[%clk 0:02:59.7]} 2. Nf3 {[%clk 0:03:00.7]}
2... e6 {[%clk 0:02:59.7]} 3. g3 {[%clk 0:03:01.3]} 3... f5 {[%clk 0:02:59.9]}
4. Bg2 {[%clk 0:03:01.7]} 4... Nf6 {[%clk 0:03:00.8]} 5. O-O {[%clk 0:03:02]}
5... Bd6 {[%clk 0:03:00.6]} 6. c4 {[%clk 0:03:02.2]} 6... c6 {[%clk 0:03:00.6]}
7. Bf4 {[%clk 0:03:01.9]} 7... O-O {[%clk 0:03:00.7]} 8. Bxd6 {[%clk 0:03:00.3]}
8... Qxd6 {[%clk 0:03:00.6]} 9. c5 {[%clk 0:02:59.8]} 9... Qe7 {[%clk
0:03:00.7]} 10. Nc3 {[%clk 0:02:58.6]} 10... Nbd7 {[%clk 0:03:00.6]} 11. Qc2
{[%clk 0:02:49.8]} 11... Ne4 {[%clk 0:02:58.4]} 12. Ne1 {[%clk 0:02:41.9]} 12...
e5 {[%clk 0:02:58.4]} 13. dxe5 {[%clk 0:02:37.2]} 13... Nxe5 {[%clk 0:02:53.3]}
14. Nd3 {[%clk 0:02:33.9]} 14... Nxd3 {[%clk 0:02:47.5]} 15. exd3 {[%clk
0:02:32]} 15... Nxc5 {[%clk 0:02:47.5]} 16. Rfe1 {[%clk 0:02:28.8]} 16... Qd6
{[%clk 0:02:47.4]} 17. b4 {[%clk 0:02:21.7]} 17... Ne6 {[%clk 0:02:44.8]} 18. a3
{[%clk 0:02:14.8]} 18... f4 {[%clk 0:02:42.2]} 19. Qd2 {[%clk 0:02:01.9]} 19...
Nd4 {[%clk 0:02:37.6]} 20. Ra2 {[%clk 0:01:53]} 20... fxg3 {[%clk 0:02:23.5]}
21. fxg3 {[%clk 0:01:47.5]} 21... Bg4 {[%clk 0:02:20.2]} 22. Qg5 {[%clk
0:01:44.9]} 22... Bf3 {[%clk 0:02:16]} 23. Rf1 {[%clk 0:01:35.9]} 23... Bxg2
{[%clk 0:02:13.8]} 24. Kxg2 {[%clk 0:01:36.8]} 24... a5 {[%clk 0:02:12.9]} 25.
b5 {[%clk 0:01:22.1]} 25... Nxb5 {[%clk 0:02:06.9]} 26. Nxb5 {[%clk 0:01:21.4]}
26... cxb5 {[%clk 0:02:06.7]} 27. Raf2 {[%clk 0:01:22]} 27... Rxf2+ {[%clk
0:02:05.8]} 28. Rxf2 {[%clk 0:01:22.9]} 28... Rf8 {[%clk 0:02:05.7]} 29. Rxf8+
{[%clk 0:01:21.2]} 29... Kxf8 {[%clk 0:02:05.3]} 30. Qf5+ {[%clk 0:01:21.6]}
30... Ke7 {[%clk 0:02:04.9]} 31. Qxh7 {[%clk 0:01:20.5]} 31... Qe5 {[%clk
0:01:55.6]} 32. Qg8 {[%clk 0:01:16.7]} 32... Kd7 {[%clk 0:01:51.4]} 33. Qf7+
{[%clk 0:01:13]} 33... Kc6 {[%clk 0:01:51.4]} 34. Qf8 {[%clk 0:01:10.3]} 34...
Qe2+ {[%clk 0:01:48.2]} 35. Kg1 {[%clk 0:01:09.2]} 35... Qxd3 {[%clk 0:01:46.8]}
36. Qxg7 {[%clk 0:01:01.1]} 36... Qxa3 {[%clk 0:01:46.4]} 37. Qg6+ {[%clk
0:00:58.6]} 37... Qd6 {[%clk 0:01:45.8]} 38. Qe8+ {[%clk 0:00:58.4]} 38... Kb6
{[%clk 0:01:45.2]} 39. g4 {[%clk 0:00:47.3]} 39... a4 {[%clk 0:01:44.9]} 40. Kg2
{[%clk 0:00:42]} 40... a3 {[%clk 0:01:44.8]} 41. Qe3+ {[%clk 0:00:41.5]} 41...
Qc5 {[%clk 0:01:42.9]} 42. Qe6+ {[%clk 0:00:40.7]} 42... Qc6 {[%clk 0:01:40]}
43. Qe2 {[%clk 0:00:27.7]} 43... d4+ {[%clk 0:01:38.8]} 44. Kg3 {[%clk 0:00:26]}
44... Qc3+ {[%clk 0:01:38.3]} 45. Kh4 {[%clk 0:00:23]} 45... Qe3 {[%clk
0:01:35.5]} 46. Qa2 {[%clk 0:00:18.3]} 46... b4 {[%clk 0:01:32.9]} 47. g5 {[%clk
0:00:16.6]} 47... Qf4+ {[%clk 0:01:30.9]} 48. Kh5 {[%clk 0:00:16.5]} 48... d3
{[%clk 0:01:27.6]} 49. g6 {[%clk 0:00:14.8]} 49... d2 {[%clk 0:01:27.4]} 50. Qd5
{[%clk 0:00:07.1]} 50... Qxh2+ {[%clk 0:01:23.3]} 51. Kg5 {[%clk 0:00:06.6]}
51... Qg1+ {[%clk 0:01:22.1]} 52. Kf6 {[%clk 0:00:05.3]} 52... d1=Q {[%clk
0:01:21.2]} 0-1

[Event "Late-Titled-Tuesday-Blitz-May-14-2024"]
[Site "Chess.com"]
[Date "2024.05.14"]
[Round "2"]
[White "TheWiscoIndian"]
[Black "MeisterJabo"]
[Result "0-1"]
[WhiteElo "2200"]
[BlackElo "2476"]
[TimeControl "180+1"]
[EndTime "14:17:59 PDT"]
[Termination "MeisterJabo won by resignation"]

1. Nf3 {[%clk 0:03:00.9]} 1... Nf6 {[%clk 0:02:58.9]} 2. g3 {[%clk 0:03:01.2]}
2... g6 {[%clk 0:02:56]} 3. b3 {[%clk 0:03:01.2]} 3... Bg7 {[%clk 0:02:56.9]} 4.
Bb2 {[%clk 0:03:01.4]} 4... O-O {[%clk 0:02:57.4]} 5. Bg2 {[%clk 0:03:01.6]}
5... d6 {[%clk 0:02:57.6]} 6. O-O {[%clk 0:03:01.9]} 6... e5 {[%clk 0:02:57.8]}
7. d3 {[%clk 0:03:01.2]} 7... Nc6 {[%clk 0:02:58.3]} 8. Nbd2 {[%clk 0:03:01.3]}
8... Re8 {[%clk 0:02:57.6]} 9. c4 {[%clk 0:03:00.4]} 9... h6 {[%clk 0:02:52.6]}
10. a3 {[%clk 0:02:56]} 10... a5 {[%clk 0:02:53.2]} 11. e3 {[%clk 0:02:54.6]}
11... Be6 {[%clk 0:02:51.7]} 12. d4 {[%clk 0:02:53]} 12... exd4 {[%clk 0:02:39]}
13. exd4 {[%clk 0:02:53.9]} 13... Bf5 {[%clk 0:02:39.7]} 14. d5 {[%clk
0:02:49.9]} 14... Nb8 {[%clk 0:02:34.5]} 15. Nd4 {[%clk 0:02:50]} 15... Bg4
{[%clk 0:02:03.2]} 16. Qc2 {[%clk 0:02:47.1]} 16... Na6 {[%clk 0:02:01.2]} 17.
Rfe1 {[%clk 0:02:44.3]} 17... Qd7 {[%clk 0:01:55.4]} 18. Nb5 {[%clk 0:02:41.6]}
18... Nc5 {[%clk 0:01:45.5]} 19. Nd4 {[%clk 0:02:25.8]} 19... g5 {[%clk
0:00:56.7]} 20. b4 {[%clk 0:02:16.1]} 20... Na4 {[%clk 0:00:51.9]} 21. Rxe8+
{[%clk 0:02:05.4]} 21... Rxe8 {[%clk 0:00:49.2]} 22. Bf1 {[%clk 0:01:21.6]}
22... Nxb2 {[%clk 0:00:44.9]} 23. Qxb2 {[%clk 0:01:21.8]} 23... Ne4 {[%clk
0:00:44.2]} 24. N2b3 {[%clk 0:01:11.9]} 24... a4 {[%clk 0:00:43]} 25. Na5 {[%clk
0:01:05.7]} 25... Qd8 {[%clk 0:00:23.2]} 26. h3 {[%clk 0:00:53.5]} 26... Bf3
{[%clk 0:00:20.1]} 27. Re1 {[%clk 0:00:14.5]} 27... Qf6 {[%clk 0:00:18.1]} 28.
Nxb7 {[%clk 0:00:11.4]} 28... Qxd4 {[%clk 0:00:16.8]} 29. Qxd4 {[%clk
0:00:11.9]} 29... Bxd4 {[%clk 0:00:17.4]} 30. Bd3 {[%clk 0:00:08.4]} 30... Bxf2+
{[%clk 0:00:16.6]} 31. Kf1 {[%clk 0:00:09.1]} 31... Bxe1 {[%clk 0:00:16.4]} 32.
Kxe1 {[%clk 0:00:10]} 32... Nc5+ {[%clk 0:00:14.2]} 33. Kd2 {[%clk 0:00:09.7]}
33... Nxb7 {[%clk 0:00:14.4]} 0-1

[Event "Late-Titled-Tuesday-Blitz-May-14-2024"]
[Site "Chess.com"]
[Date "2024.05.14"]
[Round "2"]
[White "GiorgianBarbosa"]
[Black "giovannibrandao7"]
[Result "1-0"]
[WhiteElo "2528"]
[BlackElo "2314"]
[TimeControl "180+1"]
[EndTime "14:18:02 PDT"]
[Termination "GiorgianBarbosa won by resignation"]

1. e4 {[%clk 0:02:59.8]} 1... Nf6 {[%clk 0:03:00.6]} 2. e5 {[%clk 0:02:56.9]}
2... Nd5 {[%clk 0:03:00.9]} 3. c4 {[%clk 0:02:57.8]} 3... Nb6 {[%clk 0:03:01.1]}
4. d4 {[%clk 0:02:58.7]} 4... d6 {[%clk 0:03:01.5]} 5. exd6 {[%clk 0:02:59.2]}
5... exd6 {[%clk 0:02:59.7]} 6. d5 {[%clk 0:02:59.3]} 6... Be7 {[%clk 0:02:58]}
7. Bd3 {[%clk 0:02:59.7]} 7... O-O {[%clk 0:02:58]} 8. Ne2 {[%clk 0:03:00.6]}
8... N8d7 {[%clk 0:02:53.6]} 9. O-O {[%clk 0:03:00.5]} 9... Bf6 {[%clk
0:02:48.5]} 10. Nbc3 {[%clk 0:02:57.7]} 10... Ne5 {[%clk 0:02:44.6]} 11. b3
{[%clk 0:02:57.1]} 11... Nxd3 {[%clk 0:02:44]} 12. Qxd3 {[%clk 0:02:58]} 12...
g6 {[%clk 0:02:43.1]} 13. Bb2 {[%clk 0:02:55.1]} 13... Bf5 {[%clk 0:02:41]} 14.
Qd2 {[%clk 0:02:53.8]} 14... Re8 {[%clk 0:02:33.5]} 15. Ng3 {[%clk 0:02:53.8]}
15... Qd7 {[%clk 0:02:20.8]} 16. Rae1 {[%clk 0:02:49.8]} 16... Bg7 {[%clk
0:02:01.1]} 17. Nce4 {[%clk 0:02:43.9]} 17... Bxe4 {[%clk 0:01:57.6]} 18. Nxe4
{[%clk 0:02:37.2]} 18... Qd8 {[%clk 0:01:01.5]} 19. Bxg7 {[%clk 0:02:34.3]}
19... Kxg7 {[%clk 0:01:01.2]} 20. Qd4+ {[%clk 0:02:35.2]} 20... f6 {[%clk
0:01:01.1]} 21. Ng5 {[%clk 0:02:24.7]} 21... Kg8 {[%clk 0:01:00.5]} 22. Ne6
{[%clk 0:02:22.2]} 22... Qe7 {[%clk 0:00:53.3]} 23. f4 {[%clk 0:02:22.5]} 23...
Nd7 {[%clk 0:00:36.8]} 24. Re3 {[%clk 0:02:13.5]} 24... Rac8 {[%clk 0:00:25.7]}
25. Rfe1 {[%clk 0:02:13]} 25... Qf7 {[%clk 0:00:23]} 26. g4 {[%clk 0:02:04.7]}
26... Nf8 {[%clk 0:00:16.5]} 27. Qxa7 {[%clk 0:01:41.5]} 27... c6 {[%clk
0:00:05.9]} 28. Nxf8 {[%clk 0:01:23.1]} 28... Rxe3 {[%clk 0:00:04.5]} 29. Qxe3
{[%clk 0:01:12.8]} 29... Rxf8 {[%clk 0:00:03.9]} 30. dxc6 {[%clk 0:01:04.8]}
30... bxc6 {[%clk 0:00:03.6]} 31. Qe6 {[%clk 0:01:05.7]} 31... Rd8 {[%clk
0:00:02.7]} 32. Qxf7+ {[%clk 0:01:00.2]} 32... Kxf7 {[%clk 0:00:02.2]} 33. b4
{[%clk 0:01:00.4]} 33... Ra8 {[%clk 0:00:02.6]} 34. Ra1 {[%clk 0:00:59]} 34...
Ra3 {[%clk 0:00:03.2]} 35. b5 {[%clk 0:00:57.8]} 35... cxb5 {[%clk 0:00:02.9]}
36. cxb5 {[%clk 0:00:58.7]} 36... Ra5 {[%clk 0:00:03.2]} 37. a4 {[%clk
0:00:56.7]} 37... Ke6 {[%clk 0:00:02.1]} 38. f5+ {[%clk 0:00:51.7]} 38... gxf5
{[%clk 0:00:01.5]} 39. gxf5+ {[%clk 0:00:52.6]} 39... Kxf5 {[%clk 0:00:02.1]}
40. b6 {[%clk 0:00:51.3]} 40... Ra8 {[%clk 0:00:02]} 41. a5 {[%clk 0:00:50.2]}
41... Ke6 {[%clk 0:00:02.6]} 42. b7 {[%clk 0:00:50.5]} 42... Rb8 {[%clk
0:00:01.9]} 43. a6 {[%clk 0:00:50.8]} 1-0

[Event "Late-Titled-Tuesday-Blitz-May-14-2024"]
[Site "Chess.com"]
[Date "2024.05.14"]
[Round "2"]
[White "LuckIsMySkill"]
[Black "Firouzja2003"]
[Result "0-1"]
[WhiteElo "2695"]
[BlackElo "3180"]
[TimeControl "180+1"]
[EndTime "14:18:03 PDT"]
[Termination "Firouzja2003 won by checkmate"]

1. Nf3 {[%clk 0:03:00.9]} 1... Nf6 {[%clk 0:02:58.5]} 2. g3 {[%clk 0:02:57.8]}
2... g6 {[%clk 0:02:59.4]} 3. Bg2 {[%clk 0:02:57.9]} 3... Bg7 {[%clk 0:03:00.3]}
4. O-O {[%clk 0:02:58.3]} 4... O-O {[%clk 0:03:01.2]} 5. d4 {[%clk 0:02:58.3]}
5... d6 {[%clk 0:03:01.8]} 6. Nc3 {[%clk 0:02:58.4]} 6... d5 {[%clk 0:03:01]} 7.
Re1 {[%clk 0:02:57.8]} 7... Bf5 {[%clk 0:03:00.2]} 8. Nh4 {[%clk 0:02:55.6]}
8... e6 {[%clk 0:02:59.2]} 9. h3 {[%clk 0:02:50.8]} 9... h5 {[%clk 0:02:23.4]}
10. Bg5 {[%clk 0:02:39.1]} 10... c6 {[%clk 0:02:22.3]} 11. e3 {[%clk 0:02:38.1]}
11... Nbd7 {[%clk 0:02:18.7]} 12. a3 {[%clk 0:02:18.7]} 12... Qb6 {[%clk
0:02:14.4]} 13. b4 {[%clk 0:02:16.4]} 13... a5 {[%clk 0:02:11.4]} 14. Nxf5
{[%clk 0:02:09.4]} 14... exf5 {[%clk 0:02:09.8]} 15. b5 {[%clk 0:01:56.7]} 15...
Ne4 {[%clk 0:02:09.7]} 16. Nxe4 {[%clk 0:01:49.2]} 16... dxe4 {[%clk 0:02:10.6]}
17. bxc6 {[%clk 0:01:36.5]} 17... Qxc6 {[%clk 0:02:11.5]} 18. g4 {[%clk
0:01:27.4]} 18... hxg4 {[%clk 0:01:56.5]} 19. hxg4 {[%clk 0:01:27.4]} 19... fxg4
{[%clk 0:01:57.4]} 20. c4 {[%clk 0:01:12.1]} 20... f5 {[%clk 0:01:55.8]} 21. c5
{[%clk 0:01:09.6]} 21... b6 {[%clk 0:01:46.5]} 22. cxb6 {[%clk 0:01:00]} 22...
Nxb6 {[%clk 0:01:46.6]} 23. Rc1 {[%clk 0:00:55.5]} 23... Qe6 {[%clk 0:01:46.1]}
24. Bf1 {[%clk 0:00:49.4]} 24... Rac8 {[%clk 0:01:45]} 25. Qd2 {[%clk
0:00:48.1]} 25... a4 {[%clk 0:01:27.1]} 26. Qb4 {[%clk 0:00:43.8]} 26... Kh7
{[%clk 0:01:27.1]} 27. Kg2 {[%clk 0:00:34.5]} 27... Nd5 {[%clk 0:01:19.2]} 28.
Qxa4 {[%clk 0:00:34.1]} 28... Rxc1 {[%clk 0:01:18.8]} 29. Rxc1 {[%clk
0:00:33.4]} 29... f4 {[%clk 0:01:12.1]} 30. Qc6 {[%clk 0:00:26]} 30... Qf5
{[%clk 0:00:56.7]} 31. Bc4 {[%clk 0:00:25.5]} 31... f3+ {[%clk 0:00:21.2]} 32.
Kg3 {[%clk 0:00:15.2]} 32... Be5+ {[%clk 0:00:21.7]} 33. dxe5 {[%clk 0:00:14.5]}
33... Qxe5+ {[%clk 0:00:22.6]} 34. Kxg4 {[%clk 0:00:13.2]} 34... Qf5+ {[%clk
0:00:23.3]} 35. Kh4 {[%clk 0:00:11.8]} 35... Rh8 {[%clk 0:00:23.9]} 36. Qxd5
{[%clk 0:00:09.5]} 36... Kg7+ {[%clk 0:00:23.9]} 37. Kg3 {[%clk 0:00:09.5]}
37... Rh3# {[%clk 0:00:23]} 0-1

[Event "Late-Titled-Tuesday-Blitz-May-14-2024"]
[Site "Chess.com"]
[Date "2024.05.14"]
[Round "2"]
[White "Individoom"]
[Black "Leebit02"]
[Result "1/2-1/2"]
[WhiteElo "2799"]
[BlackElo "2573"]
[TimeControl "180+1"]
[EndTime "14:18:03 PDT"]
[Termination "Game drawn by agreement"]

1. d4 {[%clk 0:02:58.8]} 1... Nf6 {[%clk 0:02:58.2]} 2. Nf3 {[%clk 0:02:58.6]}
2... e6 {[%clk 0:02:55.8]} 3. Bf4 {[%clk 0:02:55.8]} 3... b6 {[%clk 0:02:55.7]}
4. e3 {[%clk 0:02:55.3]} 4... Bb7 {[%clk 0:02:53.9]} 5. Be2 {[%clk 0:02:55]}
5... Nh5 {[%clk 0:02:40.5]} 6. Bg5 {[%clk 0:02:48.9]} 6... Be7 {[%clk
0:02:39.9]} 7. Bxe7 {[%clk 0:02:48.2]} 7... Qxe7 {[%clk 0:02:40.4]} 8. O-O
{[%clk 0:02:47.3]} 8... O-O {[%clk 0:02:33.1]} 9. a4 {[%clk 0:02:45.7]} 9... a6
{[%clk 0:02:18.7]} 10. Na3 {[%clk 0:02:36.5]} 10... d6 {[%clk 0:02:13.8]} 11.
Nd2 {[%clk 0:02:30.5]} 11... Nf6 {[%clk 0:02:12.3]} 12. Bf3 {[%clk 0:02:30.6]}
12... Bxf3 {[%clk 0:01:53.7]} 13. Qxf3 {[%clk 0:02:31.5]} 13... d5 {[%clk
0:01:53.8]} 14. c3 {[%clk 0:02:23.2]} 14... c5 {[%clk 0:01:49.8]} 15. a5 {[%clk
0:02:09]} 15... b5 {[%clk 0:01:47.7]} 16. dxc5 {[%clk 0:02:07.6]} 16... Qxc5
{[%clk 0:01:47.1]} 17. Nc2 {[%clk 0:01:55.9]} 17... Nc6 {[%clk 0:01:45.8]} 18.
e4 {[%clk 0:01:55.6]} 18... Rfd8 {[%clk 0:01:31.1]} 19. exd5 {[%clk 0:01:12.3]}
19... Qxd5 {[%clk 0:01:22.4]} 20. Qxd5 {[%clk 0:01:05.6]} 20... Rxd5 {[%clk
0:01:22.4]} 21. Nb3 {[%clk 0:01:03.6]} 21... Rad8 {[%clk 0:01:18.5]} 22. Nb4
{[%clk 0:00:51.7]} 22... Nxb4 {[%clk 0:01:13.8]} 23. cxb4 {[%clk 0:00:52.6]}
23... Ne4 {[%clk 0:00:47.1]} 24. Rac1 {[%clk 0:00:49.6]} 24... Nd2 {[%clk
0:00:40.5]} 25. Nxd2 {[%clk 0:00:48.8]} 25... Rxd2 {[%clk 0:00:40.9]} 26. Rc6
{[%clk 0:00:48.5]} 26... R2d6 {[%clk 0:00:40.9]} 27. Rxd6 {[%clk 0:00:40.8]}
27... Rxd6 {[%clk 0:00:41.1]} 28. Rc1 {[%clk 0:00:41.4]} 28... h5 {[%clk
0:00:39.3]} 29. g3 {[%clk 0:00:41.2]} 29... Kh7 {[%clk 0:00:35.9]} 30. Rc5
{[%clk 0:00:39.5]} 30... Kg6 {[%clk 0:00:35.5]} 31. h4 {[%clk 0:00:39.7]} 31...
f6 {[%clk 0:00:34.4]} 32. Kg2 {[%clk 0:00:38.4]} 32... e5 {[%clk 0:00:34.3]} 33.
Rc7 {[%clk 0:00:36.6]} 33... Rd4 {[%clk 0:00:28.7]} 34. Rc6 {[%clk 0:00:35.7]}
34... Rxb4 {[%clk 0:00:29]} 35. Rxa6 {[%clk 0:00:35.9]} 35... Rxb2 {[%clk
0:00:29.4]} 36. Rb6 {[%clk 0:00:35]} 36... b4 {[%clk 0:00:29.9]} 37. a6 {[%clk
0:00:34.5]} 37... Ra2 {[%clk 0:00:30.4]} 38. Rxb4 {[%clk 0:00:32.8]} 38... Rxa6
{[%clk 0:00:30.6]} 39. Rb2 {[%clk 0:00:30.9]} 39... Kf5 {[%clk 0:00:26.7]} 40.
Rb7 {[%clk 0:00:29.8]} 40... g6 {[%clk 0:00:23]} 41. Rb4 {[%clk 0:00:29.4]}
41... Ra3 {[%clk 0:00:22.6]} 42. Rc4 {[%clk 0:00:24.7]} 1/2-1/2

[Event "Late-Titled-Tuesday-Blitz-May-14-2024"]
[Site "Chess.com"]
[Date "2024.05.14"]
[Round "2"]
[White "Cambek64"]
[Black "nitpicker"]
[Result "1-0"]
[WhiteElo "2507"]
[BlackElo "2280"]
[TimeControl "180+1"]
[EndTime "14:18:03 PDT"]
[Termination "Cambek64 won on time"]

1. c4 {[%clk 0:03:00.2]} 1... e5 {[%clk 0:02:59]} 2. Nc3 {[%clk 0:03:00]} 2...
Nf6 {[%clk 0:02:58.6]} 3. a3 {[%clk 0:02:56.4]} 3... d5 {[%clk 0:02:58.3]} 4.
cxd5 {[%clk 0:02:56.1]} 4... Nxd5 {[%clk 0:02:58.9]} 5. d3 {[%clk 0:02:56.2]}
5... a5 {[%clk 0:02:54.7]} 6. Nf3 {[%clk 0:02:55.7]} 6... Nc6 {[%clk 0:02:54.3]}
7. e3 {[%clk 0:02:55.9]} 7... Nf6 {[%clk 0:02:49.1]} 8. Qc2 {[%clk 0:02:55.8]}
8... Bd6 {[%clk 0:02:48.9]} 9. Be2 {[%clk 0:02:56.2]} 9... O-O {[%clk
0:02:48.3]} 10. O-O {[%clk 0:02:56.6]} 10... h6 {[%clk 0:02:48.7]} 11. b3 {[%clk
0:02:54.7]} 11... Bf5 {[%clk 0:02:48]} 12. Bb2 {[%clk 0:02:54.5]} 12... Qe7
{[%clk 0:02:45.5]} 13. Ne4 {[%clk 0:02:54.2]} 13... Nxe4 {[%clk 0:02:16.4]} 14.
dxe4 {[%clk 0:02:52.6]} 14... Bd7 {[%clk 0:02:15.5]} 15. Bd3 {[%clk 0:02:44.7]}
15... Rfe8 {[%clk 0:02:12.1]} 16. Nd2 {[%clk 0:02:44.1]} 16... Rad8 {[%clk
0:02:08.3]} 17. Rfd1 {[%clk 0:02:43.3]} 17... Qf6 {[%clk 0:01:32.3]} 18. Nc4
{[%clk 0:02:39.7]} 18... Rc8 {[%clk 0:01:17]} 19. Nxd6 {[%clk 0:02:28.8]} 19...
cxd6 {[%clk 0:01:16]} 20. Qd2 {[%clk 0:02:13.9]} 20... Be6 {[%clk 0:01:14]} 21.
Bc4 {[%clk 0:02:11.9]} 21... Bxc4 {[%clk 0:01:09.2]} 22. bxc4 {[%clk 0:02:12.4]}
22... Re6 {[%clk 0:01:06.9]} 23. Rac1 {[%clk 0:02:10.6]} 23... Ne7 {[%clk
0:01:00.5]} 24. Qxa5 {[%clk 0:02:08.7]} 24... Qg5 {[%clk 0:00:56.8]} 25. Qb4
{[%clk 0:02:01]} 25... Rc6 {[%clk 0:00:44.8]} 26. Qxb7 {[%clk 0:01:56.2]} 26...
Rg6 {[%clk 0:00:42]} 27. g3 {[%clk 0:01:55.5]} 27... h5 {[%clk 0:00:42.2]} 28.
c5 {[%clk 0:01:40.6]} 28... Rxc5 {[%clk 0:00:28.2]} 29. Rxc5 {[%clk 0:01:38.2]}
29... dxc5 {[%clk 0:00:29.1]} 30. Qb8+ {[%clk 0:01:32.6]} 30... Kh7 {[%clk
0:00:28.2]} 31. Rd8 {[%clk 0:01:28.4]} 31... Rf6 {[%clk 0:00:27.9]} 32. Rh8+
{[%clk 0:01:24.1]} 32... Kg6 {[%clk 0:00:27.9]} 33. Bxe5 {[%clk 0:01:15]} 33...
Ra6 {[%clk 0:00:24]} 34. Bf4 {[%clk 0:00:56.7]} 34... Qg4 {[%clk 0:00:20]} 35.
Kg2 {[%clk 0:00:51.5]} 35... Rxa3 {[%clk 0:00:14.1]} 36. Qe5 {[%clk 0:00:34.9]}
36... Nc6 {[%clk 0:00:07.3]} 37. Qxc5 {[%clk 0:00:34.2]} 37... Ra6 {[%clk
0:00:05.1]} 38. h3 {[%clk 0:00:32.7]} 1-0

[Event "Late-Titled-Tuesday-Blitz-May-14-2024"]
[Site "Chess.com"]
[Date "2024.05.14"]
[Round "2"]
[White "annasargsyan_m"]
[Black "Zhigalko_Sergei"]
[Result "1-0"]
[WhiteElo "2597"]
[BlackElo "2841"]
[TimeControl "180+1"]
[EndTime "14:18:04 PDT"]
[Termination "annasargsyan_m won on time"]

1. e4 {[%clk 0:02:45.2]} 1... g5 {[%clk 0:03:00.2]} 2. d4 {[%clk 0:02:44.3]}
2... h6 {[%clk 0:02:51.2]} 3. h4 {[%clk 0:02:39.3]} 3... gxh4 {[%clk 0:02:50.8]}
4. Nf3 {[%clk 0:02:40]} 4... d5 {[%clk 0:02:45.7]} 5. Nc3 {[%clk 0:02:29.9]}
5... dxe4 {[%clk 0:02:29.9]} 6. Nxe4 {[%clk 0:02:30.8]} 6... h3 {[%clk
0:02:30.5]} 7. Bf4 {[%clk 0:02:30]} 7... Bf5 {[%clk 0:02:24.9]} 8. Ng3 {[%clk
0:02:28.5]} 8... Bh7 {[%clk 0:02:09.2]} 9. Rxh3 {[%clk 0:02:25.6]} 9... c6
{[%clk 0:02:03.7]} 10. c3 {[%clk 0:02:13.5]} 10... Nd7 {[%clk 0:01:51.7]} 11.
Bc4 {[%clk 0:02:08.4]} 11... e6 {[%clk 0:01:47.4]} 12. Bd3 {[%clk 0:02:04.7]}
12... Ngf6 {[%clk 0:01:38.1]} 13. Bxh7 {[%clk 0:02:03.4]} 13... Rxh7 {[%clk
0:01:39]} 14. Qc2 {[%clk 0:01:59.5]} 14... Qa5 {[%clk 0:01:36.6]} 15. Ne5 {[%clk
0:01:48.8]} 15... Rh8 {[%clk 0:01:26.6]} 16. b4 {[%clk 0:01:18.2]} 16... Qd5
{[%clk 0:01:05.9]} 17. Nf3 {[%clk 0:01:18.3]} 17... a5 {[%clk 0:00:58.7]} 18. c4
{[%clk 0:01:09.9]} 18... Qxf3 {[%clk 0:00:14.5]} 19. gxf3 {[%clk 0:01:09.2]}
19... axb4 {[%clk 0:00:15.4]} 20. Nh5 {[%clk 0:01:03.1]} 20... Rg8 {[%clk
0:00:13.9]} 21. Ke2 {[%clk 0:00:57.7]} 21... Ra3 {[%clk 0:00:12.3]} 22. Nxf6+
{[%clk 0:00:52.5]} 22... Nxf6 {[%clk 0:00:13.2]} 23. Bxh6 {[%clk 0:00:52.3]}
23... Be7 {[%clk 0:00:08]} 24. Bd2 {[%clk 0:00:51.4]} 24... Kd7 {[%clk
0:00:05.9]} 25. Rb1 {[%clk 0:00:46.3]} 25... Rga8 {[%clk 0:00:05.6]} 26. Rb2
{[%clk 0:00:46.4]} 26... Ne8 {[%clk 0:00:04.6]} 27. Rh7 {[%clk 0:00:42.9]} 27...
Nd6 {[%clk 0:00:02.5]} 28. Bxb4 {[%clk 0:00:40.6]} 28... Nf5 {[%clk 0:00:03.2]}
29. Qd2 {[%clk 0:00:33.5]} 29... Bxb4 {[%clk 0:00:02.6]} 30. Qxb4 {[%clk
0:00:23.2]} 30... Nxd4+ {[%clk 0:00:03]} 31. Kf1 {[%clk 0:00:22]} 31... Ke8
{[%clk 0:00:01.8]} 32. Rh8+ {[%clk 0:00:20.1]} 32... Kd7 {[%clk 0:00:02.3]} 33.
Rxa8 {[%clk 0:00:20.5]} 33... Ra7 {[%clk 0:00:02.1]} 34. Rxa7 {[%clk 0:00:20.2]}
1-0